[Event "Titled Tuesday Blitz July 4 Late 2023"]
[White "Francisco_Ferrari"]
[Black "Storme, Isak"]
[BlackFideId "1728113"]
[WhiteElo "2196"]
[BlackElo "2540"]
[Result "0-1"]
[Round "1"]
[TimeControl "180+2"]
[Date "2023.07.04"]
[WhiteClock "0:00:00"]
[BlackClock "0:00:33"]
[Board "164"]

1. c4 {[%clk 0:02:56]}  c6 {[%clk 0:02:55]} 2. Nf3 {[%clk 0:02:52]}  d5 {[%clk 0:02:54]} 3. e3 {[%clk 0:02:52]}  Nf6 {[%clk 0:02:54]} 4. d4 {[%clk 0:02:52]}  e6 {[%clk 0:02:52]} 5. Nc3 {[%clk 0:02:52]}  Nbd7 {[%clk 0:02:51]} 6. Be2 {[%clk 0:02:49]}  Bd6 {[%clk 0:02:47]} 7. O-O {[%clk 0:02:48]}  O-O {[%clk 0:02:46]} 8. b3 {[%clk 0:02:49]}  b6 {[%clk 0:02:46]} 9. Bb2 {[%clk 0:02:49]}  Bb7 {[%clk 0:02:46]} 10. Rc1 {[%clk 0:02:49]}  Qe7 {[%clk 0:02:46]} 11. Qc2 {[%clk 0:02:40]}  Rac8 {[%clk 0:02:45]} 12. Rfd1 {[%clk 0:02:39]}  Rc7 {[%clk 0:02:44]} 13. e4 {[%clk 0:02:01]}  dxe4 {[%clk 0:02:39]} 14. Nxe4 {[%clk 0:02:02]}  Nxe4 {[%clk 0:02:38]} 15. Qxe4 {[%clk 0:02:01]}  c5 {[%clk 0:02:39]} 16. d5 {[%clk 0:01:37]}  Nf6 {[%clk 0:02:30]} 17. Qh4 {[%clk 0:01:09]}  exd5 {[%clk 0:02:15]} 18. Bxf6 {[%clk 0:00:59]}  Qxf6 {[%clk 0:02:14]} 19. Qxf6 {[%clk 0:00:58]}  gxf6 {[%clk 0:02:15]} 20. cxd5 {[%clk 0:00:57]}  Re7 {[%clk 0:02:13]} 21. Bd3 {[%clk 0:00:26]}  Rfe8 {[%clk 0:02:00]} 22. g3 {[%clk 0:00:23]}  Kh8 {[%clk 0:01:37]} 23. Nh4 {[%clk 0:00:23]}  Re5 {[%clk 0:01:32]} 24. Bc4 {[%clk 0:00:06]}  a6 {[%clk 0:01:22]} 25. f4 {[%clk 0:00:05]}  Rh5 {[%clk 0:01:12]} 26. Re1 {[%clk 0:00:06]}  Rxe1+ {[%clk 0:01:08]} 27. Rxe1 {[%clk 0:00:07]}  Bxd5 {[%clk 0:01:05]} 28. Re8+ {[%clk 0:00:06]}  Kg7 {[%clk 0:01:04]} 29. Be2 {[%clk 0:00:07]}  Rxh4 {[%clk 0:01:02]} 30. gxh4 {[%clk 0:00:07]}  Bxf4 {[%clk 0:01:02]} 31. Rd8 {[%clk 0:00:07]}  Bb7 {[%clk 0:00:53]} 32. Rd7 {[%clk 0:00:07]}  Bc8 {[%clk 0:00:52]} 33. Ra7 {[%clk 0:00:08]}  a5 {[%clk 0:00:48]} 34. Bc4 {[%clk 0:00:08]}  Kg6 {[%clk 0:00:42]} 35. Rxf7 {[%clk 0:00:08]}  b5 {[%clk 0:00:38]} 36. Rf8 {[%clk 0:00:09]}  bxc4 {[%clk 0:00:37]} 37. Rxc8 {[%clk 0:00:09]}  c3 {[%clk 0:00:33]} 38. Rxc5 {[%clk 0:00:02]}  Be3+ {[%clk 0:00:33]} 39. Kf1 {[%clk 0:00:00]}  Bxc5 {[%clk 0:00:33]} 0-1


[Site "https://www.chess.com"]

[Event "Titled Tuesday Blitz July 4 Late 2023"]
[White "Fiol, Fabrice"]
[Black "Cueto, Jonny"]
[WhiteFideId "611670"]
[BlackFideId "3300145"]
[WhiteElo "2540"]
[BlackElo "2196"]
[Result "1-0"]
[Round "1"]
[TimeControl "180+2"]
[Date "2023.07.04"]
[WhiteClock "0:00:15"]
[BlackClock "0:00:36"]
[Board "165"]

1. e4 {[%clk 0:03:00]}  e6 {[%clk 0:02:55]} 2. Qe2 {[%clk 0:02:52]}  d5 {[%clk 0:02:54]} 3. exd5 {[%clk 0:02:52]}  Qxd5 {[%clk 0:02:55]} 4. Nc3 {[%clk 0:02:52]}  Qd8 {[%clk 0:02:55]} 5. Nf3 {[%clk 0:02:53]}  Nf6 {[%clk 0:02:56]} 6. b3 {[%clk 0:02:53]}  Be7 {[%clk 0:02:56]} 7. Bb2 {[%clk 0:02:54]}  b6 {[%clk 0:02:57]} 8. O-O-O {[%clk 0:02:53]}  Bb7 {[%clk 0:02:57]} 9. g4 {[%clk 0:02:53]}  h6 {[%clk 0:02:56]} 10. Rg1 {[%clk 0:02:52]}  Nd5 {[%clk 0:02:41]} 11. Nxd5 {[%clk 0:02:43]}  Qxd5 {[%clk 0:02:41]} 12. Bg2 {[%clk 0:02:40]}  Nc6 {[%clk 0:02:23]} 13. Ne5 {[%clk 0:02:11]}  Qd6 {[%clk 0:02:05]} 14. Qf3 {[%clk 0:01:12]}  Nxe5 {[%clk 0:01:45]} 15. Qxb7 {[%clk 0:01:12]}  Rd8 {[%clk 0:01:43]} 16. f4 {[%clk 0:01:09]}  Nd7 {[%clk 0:01:26]} 17. Bxg7 {[%clk 0:01:02]}  Rg8 {[%clk 0:01:17]} 18. Bxh6 {[%clk 0:00:46]}  Qa3+ {[%clk 0:00:57]} 19. Kb1 {[%clk 0:00:45]}  Bf6 {[%clk 0:00:58]} 20. d4 {[%clk 0:00:41]}  a5 {[%clk 0:00:58]} 21. g5 {[%clk 0:00:35]}  Bh8 {[%clk 0:00:57]} 22. f5 {[%clk 0:00:27]}  a4 {[%clk 0:00:54]} 23. fxe6 {[%clk 0:00:25]}  fxe6 {[%clk 0:00:49]} 24. Bf3 {[%clk 0:00:19]}  axb3 {[%clk 0:00:45]} 25. cxb3 {[%clk 0:00:19]}  Ra8 {[%clk 0:00:44]} 26. Qxa8+ {[%clk 0:00:18]}  Kf7 {[%clk 0:00:42]} 27. Qxa3 {[%clk 0:00:18]}  Rd8 {[%clk 0:00:39]} 28. Bh5+ {[%clk 0:00:16]}  Kg8 {[%clk 0:00:36]} 29. Qe7 {[%clk 0:00:15]} 1-0


[Site "https://www.chess.com"]

[Event "Titled Tuesday Blitz July 4 Late 2023"]
[White "Cooper, Aaron"]
[Black "Moral Garcia, Serafin"]
[WhiteFideId "2634945"]
[BlackFideId "2201925"]
[WhiteElo "2193"]
[BlackElo "2539"]
[Result "0-1"]
[Round "1"]
[TimeControl "180+2"]
[Date "2023.07.04"]
[WhiteClock "0:00:06"]
[BlackClock "0:00:23"]
[Board "166"]

1. e4 {[%clk 0:03:00]}  c5 {[%clk 0:02:58]} 2. Nf3 {[%clk 0:03:00]}  e6 {[%clk 0:02:58]} 3. d4 {[%clk 0:03:00]}  cxd4 {[%clk 0:02:59]} 4. Nxd4 {[%clk 0:03:01]}  Nc6 {[%clk 0:02:59]} 5. Nc3 {[%clk 0:03:01]}  Qc7 {[%clk 0:03:00]} 6. Be3 {[%clk 0:03:00]}  a6 {[%clk 0:03:00]} 7. Be2 {[%clk 0:02:59]}  Nf6 {[%clk 0:02:59]} 8. O-O {[%clk 0:02:58]}  Bb4 {[%clk 0:02:58]} 9. Nxc6 {[%clk 0:02:58]}  Qxc6 {[%clk 0:02:55]} 10. Qd4 {[%clk 0:02:58]}  Bxc3 {[%clk 0:02:52]} 11. bxc3 {[%clk 0:02:56]}  Qxe4 {[%clk 0:02:52]} 12. Qxe4 {[%clk 0:02:53]}  Nxe4 {[%clk 0:02:51]} 13. Bd4 {[%clk 0:02:54]}  O-O {[%clk 0:02:50]} 14. a4 {[%clk 0:02:49]}  d5 {[%clk 0:02:47]} 15. f3 {[%clk 0:02:47]}  Nd6 {[%clk 0:02:45]} 16. Rab1 {[%clk 0:02:44]}  Rd8 {[%clk 0:02:38]} 17. Bb6 {[%clk 0:02:42]}  Rd7 {[%clk 0:02:37]} 18. Rfd1 {[%clk 0:02:39]}  Kf8 {[%clk 0:02:30]} 19. c4 {[%clk 0:02:28]}  Nxc4 {[%clk 0:02:19]} 20. Bxc4 {[%clk 0:02:28]}  dxc4 {[%clk 0:02:19]} 21. Bc5+ {[%clk 0:02:28]}  Ke8 {[%clk 0:02:13]} 22. Rxd7 {[%clk 0:02:28]}  Kxd7 {[%clk 0:02:13]} 23. Rb4 {[%clk 0:02:23]}  b5 {[%clk 0:02:03]} 24. axb5 {[%clk 0:02:22]}  axb5 {[%clk 0:02:04]} 25. Rxb5 {[%clk 0:02:22]}  Ra1+ {[%clk 0:02:01]} 26. Kf2 {[%clk 0:02:18]}  Ra2 {[%clk 0:02:01]} 27. Bd4 {[%clk 0:02:01]}  Rxc2+ {[%clk 0:02:00]} 28. Kg3 {[%clk 0:02:01]}  f6 {[%clk 0:01:58]} 29. f4 {[%clk 0:01:50]}  Rd2 {[%clk 0:01:52]} 30. Be3 {[%clk 0:01:45]}  Rd3 {[%clk 0:01:49]} 31. Kf2 {[%clk 0:01:45]}  Ra3 {[%clk 0:01:42]} 32. Rc5 {[%clk 0:01:41]}  c3 {[%clk 0:01:35]} 33. Bc1 {[%clk 0:01:20]}  Ra2+ {[%clk 0:01:33]} 34. Kf1 {[%clk 0:01:17]}  Rc2 {[%clk 0:01:30]} 35. Be3 {[%clk 0:01:15]}  Bb7 {[%clk 0:01:29]} 36. g3 {[%clk 0:01:15]}  Rxh2 {[%clk 0:01:05]} 37. Rxc3 {[%clk 0:01:14]}  Bd5 {[%clk 0:01:03]} 38. Ra3 {[%clk 0:01:11]}  Kc6 {[%clk 0:01:01]} 39. Ra7 {[%clk 0:01:08]}  g6 {[%clk 0:01:01]} 40. Bd4 {[%clk 0:01:06]}  f5 {[%clk 0:01:01]} 41. Bf6 {[%clk 0:01:02]}  Kc5 {[%clk 0:01:00]} 42. Bh4 {[%clk 0:01:00]}  h6 {[%clk 0:00:53]} 43. Rg7 {[%clk 0:00:57]}  Kd4 {[%clk 0:00:48]} 44. Ke1 {[%clk 0:00:35]}  Bb3 {[%clk 0:00:26]} 45. Rxg6 {[%clk 0:00:27]}  Ke3 {[%clk 0:00:26]} 46. Kf1 {[%clk 0:00:06]}  Bd5 {[%clk 0:00:23]} 0-1


[Site "https://www.chess.com"]

[Event "Titled Tuesday Blitz July 4 Late 2023"]
[White "Hartikainen, Jarmo"]
[Black "Shubenkova, Veronika"]
[WhiteFideId "503134"]
[BlackFideId "44124040"]
[WhiteElo "2171"]
[BlackElo "2537"]
[Result "0-1"]
[Round "1"]
[TimeControl "180+2"]
[Date "2023.07.04"]
[WhiteClock "0:00:05"]
[BlackClock "0:02:08"]
[Board "168"]

1. e4 {[%clk 0:02:58]}  e6 {[%clk 0:02:59]} 2. d4 {[%clk 0:02:57]}  d5 {[%clk 0:02:59]} 3. Nd2 {[%clk 0:02:57]}  Nf6 {[%clk 0:02:58]} 4. e5 {[%clk 0:02:58]}  Nfd7 {[%clk 0:02:59]} 5. Bd3 {[%clk 0:02:58]}  c5 {[%clk 0:02:59]} 6. c3 {[%clk 0:02:58]}  Nc6 {[%clk 0:02:58]} 7. Ne2 {[%clk 0:02:58]}  Be7 {[%clk 0:02:58]} 8. f4 {[%clk 0:02:55]}  a6 {[%clk 0:02:57]} 9. O-O {[%clk 0:02:52]}  b5 {[%clk 0:02:56]} 10. Nf3 {[%clk 0:02:49]}  Qb6 {[%clk 0:02:55]} 11. Be3 {[%clk 0:02:43]}  g6 {[%clk 0:02:55]} 12. b3 {[%clk 0:02:09]}  Bb7 {[%clk 0:02:51]} 13. a4 {[%clk 0:01:44]}  b4 {[%clk 0:02:51]} 14. Rc1 {[%clk 0:01:25]}  bxc3 {[%clk 0:02:51]} 15. Nxc3 {[%clk 0:01:19]}  cxd4 {[%clk 0:02:50]} 16. Nxd4 {[%clk 0:01:05]}  Nxd4 {[%clk 0:02:49]} 17. Bb1 {[%clk 0:00:35]}  Bc5 {[%clk 0:02:44]} 18. a5 {[%clk 0:00:17]}  Qa7 {[%clk 0:02:38]} 19. Kh1 {[%clk 0:00:09]}  Nf5 {[%clk 0:02:34]} 20. Bxc5 {[%clk 0:00:06]}  Nxc5 {[%clk 0:02:33]} 21. Bxf5 {[%clk 0:00:06]}  gxf5 {[%clk 0:02:33]} 22. b4 {[%clk 0:00:07]}  Ne4 {[%clk 0:02:32]} 23. Na4 {[%clk 0:00:07]}  Nf2+ {[%clk 0:02:26]} 24. Rxf2 {[%clk 0:00:08]}  Qxf2 {[%clk 0:02:25]} 25. Nc5 {[%clk 0:00:09]}  Bc6 {[%clk 0:02:19]} 26. Nxe6 {[%clk 0:00:09]}  fxe6 {[%clk 0:02:16]} 27. Rxc6 {[%clk 0:00:09]}  O-O {[%clk 0:02:15]} 28. Rxe6 {[%clk 0:00:09]}  Kh8 {[%clk 0:02:14]} 29. Re7 {[%clk 0:00:09]}  Qh4 {[%clk 0:02:08]} 30. h3 {[%clk 0:00:05]}  Qxe7 {[%clk 0:02:08]} 0-1


[Site "https://www.chess.com"]

[Event "Titled Tuesday Blitz July 4 Late 2023"]
[White "Rottenwohrer Suarez, Juan"]
[Black "campochess"]
[WhiteFideId "32068182"]
[WhiteElo "2533"]
[BlackElo "2126"]
[Result "1-0"]
[Round "1"]
[TimeControl "180+2"]
[Date "2023.07.04"]
[WhiteClock "0:00:07"]
[BlackClock "0:00:48"]
[Board "173"]

1. Nf3 {[%clk 0:02:43]}  c5 {[%clk 0:02:58]} 2. g3 {[%clk 0:02:44]}  Nc6 {[%clk 0:02:58]} 3. Bg2 {[%clk 0:02:44]}  g6 {[%clk 0:02:58]} 4. O-O {[%clk 0:02:44]}  Bg7 {[%clk 0:02:58]} 5. c4 {[%clk 0:02:37]}  d6 {[%clk 0:02:58]} 6. Nc3 {[%clk 0:02:34]}  Nf6 {[%clk 0:02:58]} 7. d4 {[%clk 0:02:32]}  cxd4 {[%clk 0:02:57]} 8. Nxd4 {[%clk 0:02:33]}  Bd7 {[%clk 0:02:57]} 9. Nb3 {[%clk 0:02:28]}  O-O {[%clk 0:02:56]} 10. c5 {[%clk 0:02:26]}  Be6 {[%clk 0:02:45]} 11. cxd6 {[%clk 0:02:24]}  exd6 {[%clk 0:02:45]} 12. Bf4 {[%clk 0:02:15]}  Ne5 {[%clk 0:02:40]} 13. Bxb7 {[%clk 0:02:11]}  Rb8 {[%clk 0:02:39]} 14. Bg2 {[%clk 0:02:11]}  Nc4 {[%clk 0:02:35]} 15. Qc2 {[%clk 0:02:05]}  Ng4 {[%clk 0:02:32]} 16. Rad1 {[%clk 0:01:56]}  Qb6 {[%clk 0:02:27]} 17. Nd5 {[%clk 0:01:28]}  Bxd5 {[%clk 0:02:25]} 18. Bxd5 {[%clk 0:01:29]}  Nxb2 {[%clk 0:02:21]} 19. Rd2 {[%clk 0:01:13]}  Rbc8 {[%clk 0:02:20]} 20. Qb1 {[%clk 0:01:05]}  Na4 {[%clk 0:02:16]} 21. Bxd6 {[%clk 0:00:54]}  Rfd8 {[%clk 0:02:08]} 22. Be7 {[%clk 0:00:42]}  Rxd5 {[%clk 0:02:01]} 23. Rxd5 {[%clk 0:00:43]}  Nc3 {[%clk 0:02:01]} 24. Qd3 {[%clk 0:00:39]}  Nxd5 {[%clk 0:02:00]} 25. Qxd5 {[%clk 0:00:40]}  Qe6 {[%clk 0:01:51]} 26. Qxe6 {[%clk 0:00:39]}  fxe6 {[%clk 0:01:51]} 27. Rc1 {[%clk 0:00:35]}  Rc3 {[%clk 0:01:44]} 28. Rxc3 {[%clk 0:00:30]}  Bxc3 {[%clk 0:01:44]} 29. Bc5 {[%clk 0:00:29]}  a5 {[%clk 0:01:43]} 30. a4 {[%clk 0:00:27]}  Nf6 {[%clk 0:01:40]} 31. Bb6 {[%clk 0:00:26]}  Nd5 {[%clk 0:01:31]} 32. Bc5 {[%clk 0:00:14]}  Bb4 {[%clk 0:01:26]} 33. Bd4 {[%clk 0:00:04]}  Nb6 {[%clk 0:01:24]} 34. Bxb6 {[%clk 0:00:03]}  Kf7 {[%clk 0:01:22]} 35. Bxa5 {[%clk 0:00:04]}  Bd6 {[%clk 0:01:21]} 36. e3 {[%clk 0:00:05]}  e5 {[%clk 0:01:20]} 37. Kg2 {[%clk 0:00:05]}  Ke6 {[%clk 0:01:20]} 38. h4 {[%clk 0:00:06]}  h5 {[%clk 0:01:19]} 39. Bb6 {[%clk 0:00:06]}  Kd5 {[%clk 0:01:19]} 40. a5 {[%clk 0:00:07]}  Kc6 {[%clk 0:01:18]} 41. Nd2 {[%clk 0:00:07]}  Bb4 {[%clk 0:01:17]} 42. Ne4 {[%clk 0:00:07]}  Kd5 {[%clk 0:01:16]} 43. Ng5 {[%clk 0:00:06]}  Kc6 {[%clk 0:01:15]} 44. Kf3 {[%clk 0:00:06]}  Kd5 {[%clk 0:01:14]} 45. Ke2 {[%clk 0:00:07]}  Kc6 {[%clk 0:01:12]} 46. f4 {[%clk 0:00:07]}  exf4 {[%clk 0:01:12]} 47. exf4 {[%clk 0:00:08]}  Kb5 {[%clk 0:01:09]} 48. Ne6 {[%clk 0:00:07]}  Bc3 {[%clk 0:01:06]} 49. Kd3 {[%clk 0:00:07]}  Be1 {[%clk 0:01:05]} 50. Ke4 {[%clk 0:00:03]}  Bxg3 {[%clk 0:01:05]} 51. Nf8 {[%clk 0:00:04]}  Bxh4 {[%clk 0:01:04]} 52. Nxg6 {[%clk 0:00:04]}  Be1 {[%clk 0:01:03]} 53. f5 {[%clk 0:00:05]}  h4 {[%clk 0:01:03]} 54. f6 {[%clk 0:00:05]}  Bb4 {[%clk 0:01:01]} 55. f7 {[%clk 0:00:05]}  h3 {[%clk 0:01:01]} 56. Kf3 {[%clk 0:00:05]}  Bd6 {[%clk 0:00:58]} 57. f8=Q {[%clk 0:00:05]}  Bxf8 {[%clk 0:00:57]} 58. Nxf8 {[%clk 0:00:06]}  h2 {[%clk 0:00:55]} 59. Kg2 {[%clk 0:00:06]}  h1=Q+ {[%clk 0:00:48]} 60. Kxh1 {[%clk 0:00:07]} 1-0


[Site "https://www.chess.com"]

[Event "Titled Tuesday Blitz July 4 Late 2023"]
[White "Prem, Pranav"]
[Black "Cardenas Carbajal, Nilson"]
[WhiteFideId "30901057"]
[BlackFideId "8401128"]
[WhiteElo "2532"]
[BlackElo "2111"]
[Result "1-0"]
[Round "1"]
[TimeControl "180+2"]
[Date "2023.07.04"]
[WhiteClock "0:00:25"]
[BlackClock "0:00:00"]
[Board "175"]

1. d4 {[%clk 0:03:00]}  Nf6 {[%clk 0:02:52]} 2. c4 {[%clk 0:02:59]}  g6 {[%clk 0:02:52]} 3. Nc3 {[%clk 0:02:58]}  d5 {[%clk 0:02:53]} 4. cxd5 {[%clk 0:02:57]}  Nxd5 {[%clk 0:02:53]} 5. e4 {[%clk 0:02:58]}  Nxc3 {[%clk 0:02:53]} 6. bxc3 {[%clk 0:02:59]}  Bg7 {[%clk 0:02:54]} 7. Bc4 {[%clk 0:02:57]}  c5 {[%clk 0:02:54]} 8. Ne2 {[%clk 0:02:57]}  Nc6 {[%clk 0:02:49]} 9. Be3 {[%clk 0:02:55]}  O-O {[%clk 0:02:46]} 10. O-O {[%clk 0:02:55]}  Bg4 {[%clk 0:02:46]} 11. f3 {[%clk 0:02:50]}  Na5 {[%clk 0:02:45]} 12. Bd3 {[%clk 0:02:49]}  cxd4 {[%clk 0:02:37]} 13. cxd4 {[%clk 0:02:45]}  Be6 {[%clk 0:02:37]} 14. d5 {[%clk 0:02:43]}  Bxa1 {[%clk 0:02:36]} 15. Qxa1 {[%clk 0:02:43]}  f6 {[%clk 0:02:29]} 16. Bh6 {[%clk 0:02:34]}  Re8 {[%clk 0:02:27]} 17. Qd4 {[%clk 0:02:30]}  Bd7 {[%clk 0:02:20]} 18. e5 {[%clk 0:02:17]}  Qb6 {[%clk 0:02:12]} 19. Qxb6 {[%clk 0:02:08]}  axb6 {[%clk 0:02:12]} 20. e6 {[%clk 0:02:09]}  Ba4 {[%clk 0:01:54]} 21. Nc3 {[%clk 0:02:06]}  b5 {[%clk 0:01:18]} 22. Bxb5 {[%clk 0:01:55]}  Bxb5 {[%clk 0:01:15]} 23. Nxb5 {[%clk 0:01:56]}  Rec8 {[%clk 0:01:10]} 24. d6 {[%clk 0:01:46]}  exd6 {[%clk 0:01:08]} 25. Nxd6 {[%clk 0:01:47]}  Rc6 {[%clk 0:00:59]} 26. Rd1 {[%clk 0:01:43]}  Nc4 {[%clk 0:00:45]} 27. Nxc4 {[%clk 0:01:23]}  Rxc4 {[%clk 0:00:39]} 28. Rd7 {[%clk 0:01:24]}  Re8 {[%clk 0:00:32]} 29. Rg7+ {[%clk 0:01:02]}  Kh8 {[%clk 0:00:31]} 30. Rxb7 {[%clk 0:01:02]}  Rc6 {[%clk 0:00:19]} 31. e7 {[%clk 0:00:57]}  Re6 {[%clk 0:00:16]} 32. Bf8 {[%clk 0:00:55]}  Kg8 {[%clk 0:00:16]} 33. a4 {[%clk 0:00:51]}  Ra6 {[%clk 0:00:14]} 34. Rb4 {[%clk 0:00:50]}  Kf7 {[%clk 0:00:14]} 35. Rh4 {[%clk 0:00:37]}  h5 {[%clk 0:00:12]} 36. Rd4 {[%clk 0:00:37]}  g5 {[%clk 0:00:09]} 37. Kf2 {[%clk 0:00:33]}  Re6 {[%clk 0:00:04]} 38. a5 {[%clk 0:00:30]}  Ra6 {[%clk 0:00:03]} 39. Rd5 {[%clk 0:00:30]}  Ke6 {[%clk 0:00:00]} 40. Rb5 {[%clk 0:00:25]} 1-0


[Site "https://www.chess.com"]

[Event "Titled Tuesday Blitz July 4 Late 2023"]
[White "Tan, Ralph"]
[Black "Curtis, John"]
[WhiteFideId "30966590"]
[BlackFideId "3200256"]
[WhiteElo "2531"]
[BlackElo "2100"]
[Result "0-1"]
[Round "1"]
[TimeControl "180+2"]
[Date "2023.07.04"]
[WhiteClock "0:00:19"]
[BlackClock "0:00:17"]
[Board "177"]

1. Nf3 {[%clk 0:02:56]}  d5 {[%clk 0:02:58]} 2. g3 {[%clk 0:02:55]}  c6 {[%clk 0:02:58]} 3. Bg2 {[%clk 0:02:54]}  h6 {[%clk 0:02:58]} 4. O-O {[%clk 0:02:54]}  Bf5 {[%clk 0:02:58]} 5. c4 {[%clk 0:02:54]}  e6 {[%clk 0:02:56]} 6. d4 {[%clk 0:02:54]}  Nf6 {[%clk 0:02:55]} 7. Nc3 {[%clk 0:02:54]}  Be7 {[%clk 0:02:47]} 8. b3 {[%clk 0:02:53]}  Qa5 {[%clk 0:02:42]} 9. Bb2 {[%clk 0:02:51]}  Ba3 {[%clk 0:02:41]} 10. Bxa3 {[%clk 0:02:44]}  Qxa3 {[%clk 0:02:40]} 11. Ne5 {[%clk 0:02:39]}  O-O {[%clk 0:02:27]} 12. Re1 {[%clk 0:02:26]}  Rd8 {[%clk 0:02:23]} 13. cxd5 {[%clk 0:02:21]}  exd5 {[%clk 0:02:21]} 14. Na4 {[%clk 0:02:13]}  Nbd7 {[%clk 0:02:14]} 15. Nd3 {[%clk 0:02:01]}  Bxd3 {[%clk 0:02:10]} 16. Qxd3 {[%clk 0:02:02]}  Re8 {[%clk 0:02:03]} 17. e3 {[%clk 0:01:50]}  Re7 {[%clk 0:01:44]} 18. Rec1 {[%clk 0:01:47]}  Rae8 {[%clk 0:01:38]} 19. h3 {[%clk 0:01:38]}  g6 {[%clk 0:01:29]} 20. Nc3 {[%clk 0:01:21]}  Kg7 {[%clk 0:01:21]} 21. Rab1 {[%clk 0:01:16]}  Qd6 {[%clk 0:01:12]} 22. b4 {[%clk 0:01:15]}  a6 {[%clk 0:01:12]} 23. Na4 {[%clk 0:01:10]}  Ne4 {[%clk 0:01:04]} 24. Nc5 {[%clk 0:01:00]}  Ndxc5 {[%clk 0:00:42]} 25. bxc5 {[%clk 0:00:59]}  Qb8 {[%clk 0:00:33]} 26. Bxe4 {[%clk 0:00:45]}  dxe4 {[%clk 0:00:33]} 27. Qc3 {[%clk 0:00:42]}  Kh7 {[%clk 0:00:28]} 28. Rb6 {[%clk 0:00:42]}  Qc8 {[%clk 0:00:27]} 29. Kh2 {[%clk 0:00:36]}  Rd8 {[%clk 0:00:22]} 30. Rcb1 {[%clk 0:00:34]}  Rd5 {[%clk 0:00:20]} 31. Qe1 {[%clk 0:00:24]}  Rh5 {[%clk 0:00:18]} 32. Qf1 {[%clk 0:00:24]}  Rf5 {[%clk 0:00:18]} 33. Qg2 {[%clk 0:00:23]}  h5 {[%clk 0:00:18]} 34. h4 {[%clk 0:00:22]}  Rf3 {[%clk 0:00:17]} 35. R6b2 {[%clk 0:00:19]}  Rc7 {[%clk 0:00:15]} 36. Rd1 {[%clk 0:00:19]}  Qf5 {[%clk 0:00:15]} 37. Rbd2 {[%clk 0:00:19]}  Re7 {[%clk 0:00:15]} 38. d5 {[%clk 0:00:19]}  cxd5 {[%clk 0:00:14]} 39. Rxd5 {[%clk 0:00:20]}  Re5 {[%clk 0:00:15]} 40. Rxe5 {[%clk 0:00:20]}  Qxe5 {[%clk 0:00:15]} 41. Rd4 {[%clk 0:00:21]}  Qxc5 {[%clk 0:00:15]} 42. Rxe4 {[%clk 0:00:21]}  Rf6 {[%clk 0:00:15]} 43. Rf4 {[%clk 0:00:19]}  Rxf4 {[%clk 0:00:13]} 44. exf4 {[%clk 0:00:20]}  Qc6 {[%clk 0:00:13]} 45. Qxc6 {[%clk 0:00:18]}  bxc6 {[%clk 0:00:12]} 46. Kg2 {[%clk 0:00:19]}  f5 {[%clk 0:00:13]} 47. Kf3 {[%clk 0:00:20]}  Kg7 {[%clk 0:00:12]} 48. Ke3 {[%clk 0:00:20]}  Kf6 {[%clk 0:00:13]} 49. Kd4 {[%clk 0:00:21]}  Ke6 {[%clk 0:00:13]} 50. Kc5 {[%clk 0:00:21]}  Kd7 {[%clk 0:00:13]} 51. a3 {[%clk 0:00:19]}  Kc7 {[%clk 0:00:13]} 52. a4 {[%clk 0:00:18]}  a5 {[%clk 0:00:13]} 53. f3 {[%clk 0:00:19]}  Kb7 {[%clk 0:00:13]} 54. Kd6 {[%clk 0:00:07]}  Kb6 {[%clk 0:00:13]} 55. g4 {[%clk 0:00:07]}  fxg4 {[%clk 0:00:11]} 56. fxg4 {[%clk 0:00:08]}  hxg4 {[%clk 0:00:11]} 57. f5 {[%clk 0:00:09]}  g3 {[%clk 0:00:10]} 58. f6 {[%clk 0:00:05]}  g2 {[%clk 0:00:10]} 59. f7 {[%clk 0:00:05]}  g1=Q {[%clk 0:00:11]} 60. f8=Q {[%clk 0:00:06]}  Qd4+ {[%clk 0:00:11]} 61. Ke6 {[%clk 0:00:05]}  Qe4+ {[%clk 0:00:11]} 62. Kf7 {[%clk 0:00:05]}  Qf5+ {[%clk 0:00:10]} 63. Kg8 {[%clk 0:00:06]}  Qxf8+ {[%clk 0:00:11]} 64. Kxf8 {[%clk 0:00:06]}  c5 {[%clk 0:00:12]} 65. Kf7 {[%clk 0:00:07]}  c4 {[%clk 0:00:12]} 66. Kxg6 {[%clk 0:00:08]}  c3 {[%clk 0:00:13]} 67. h5 {[%clk 0:00:09]}  c2 {[%clk 0:00:13]} 68. h6 {[%clk 0:00:10]}  c1=Q {[%clk 0:00:14]} 69. h7 {[%clk 0:00:10]}  Qc2+ {[%clk 0:00:13]} 70. Kg7 {[%clk 0:00:11]}  Qxa4 {[%clk 0:00:13]} 71. h8=Q {[%clk 0:00:11]}  Qa1+ {[%clk 0:00:12]} 72. Kg8 {[%clk 0:00:11]}  Qxh8+ {[%clk 0:00:13]} 73. Kxh8 {[%clk 0:00:12]}  a4 {[%clk 0:00:13]} 74. Kg7 {[%clk 0:00:13]}  a3 {[%clk 0:00:14]} 75. Kf6 {[%clk 0:00:14]}  a2 {[%clk 0:00:15]} 76. Ke5 {[%clk 0:00:14]}  a1=Q+ {[%clk 0:00:15]} 77. Ke4 {[%clk 0:00:15]}  Kc6 {[%clk 0:00:15]} 78. Kd3 {[%clk 0:00:16]}  Qa4 {[%clk 0:00:15]} 79. Kc3 {[%clk 0:00:15]}  Kd5 {[%clk 0:00:16]} 80. Kb2 {[%clk 0:00:16]}  Kd4 {[%clk 0:00:16]} 81. Kb1 {[%clk 0:00:16]}  Ke3 {[%clk 0:00:16]} 82. Kb2 {[%clk 0:00:17]}  Kd2 {[%clk 0:00:16]} 83. Kb1 {[%clk 0:00:17]}  Qb3+ {[%clk 0:00:16]} 84. Ka1 {[%clk 0:00:18]}  Qb8 {[%clk 0:00:16]} 85. Ka2 {[%clk 0:00:18]}  Kc3 {[%clk 0:00:17]} 86. Ka1 {[%clk 0:00:19]}  Qb2# {[%clk 0:00:17]} 0-1


[Site "https://www.chess.com"]

[Event "Titled Tuesday Blitz July 4 Late 2023"]
[White "ElDivis"]
[Black "Winkels, Marcel"]
[BlackFideId "1003887"]
[WhiteElo "2526"]
[BlackElo "2081"]
[Result "1-0"]
[Round "1"]
[TimeControl "180+2"]
[Date "2023.07.04"]
[WhiteClock "0:02:00"]
[BlackClock "0:00:28"]
[Board "179"]

1. Nf3 {[%clk 0:02:58]}  Nf6 {[%clk 0:02:58]} 2. c4 {[%clk 0:02:57]}  g6 {[%clk 0:02:55]} 3. Nc3 {[%clk 0:02:57]}  d5 {[%clk 0:02:54]} 4. Qa4+ {[%clk 0:02:47]}  Bd7 {[%clk 0:02:44]} 5. Qb3 {[%clk 0:02:47]}  Bc6 {[%clk 0:02:37]} 6. cxd5 {[%clk 0:02:32]}  Nxd5 {[%clk 0:02:35]} 7. Ne5 {[%clk 0:02:30]}  Bg7 {[%clk 0:01:39]} 8. Nxc6 {[%clk 0:02:26]}  bxc6 {[%clk 0:01:30]} 9. e4 {[%clk 0:02:16]}  Nxc3 {[%clk 0:01:16]} 10. bxc3 {[%clk 0:02:17]}  O-O {[%clk 0:01:13]} 11. h4 {[%clk 0:02:17]}  Nd7 {[%clk 0:00:57]} 12. h5 {[%clk 0:02:15]}  Nc5 {[%clk 0:00:52]} 13. Qc4 {[%clk 0:02:08]}  Ne6 {[%clk 0:00:37]} 14. hxg6 {[%clk 0:02:02]}  fxg6 {[%clk 0:00:28]} 15. Qxe6+ {[%clk 0:02:00]} 1-0


[Site "https://www.chess.com"]